[Event "FIDE WSCC 50 2022"]
[Site "Assisi"]
[Date "2022.11.18"]
[Round "4.10"]
[White "Bellia, Fabrizio"]
[Black "Welling, Gerard"]
[Result "1/2-1/2"]
[ECO "C10"]
[WhiteElo "2398"]
[BlackElo "2255"]
[Annotator "TA"]
[PlyCount "98"]
[EventDate "2022.11.14"]
[EventType "swiss"]
[EventCountry "ITA"]
[SourceTitle "playchess.com"]
[Source "ChessBase"]
[SourceQuality "1"]
[TimeControl "40/5400+30:1800+30"]

{[%evp 19,98,32,47,32,43,25,44,25,40,37,48,31,105,97,100,100,124,27,89,73,88,57,44,50,60,46,129,32,32,48,69,-7,29,0,0,0,0,0,0,0,0,0,0,0,0,0,0,0,0,0,-6,-51,0,0,0,0,0,0,0,0,0,0,0,0,0,0,0,0,0,-58,0,0,0,0,0,0,0,0,0,0,0]} 1. e4 {[%emt 0:00:05]} e6 {[%emt 0:00:06]} 2. d4 {[%emt 0:00:07]} d5 {[%emt 0:00:07]} 3. Nd2 {[%emt 0:00:06]} dxe4 {[%emt 0:00:19]} 4. Nxe4 {[%emt 0:00:05]} Bd7 {[%emt 0:00:05]} 5. Nf3 {[%emt 0:00:09]} Bc6 {[%emt 0:00:04]} 6. Bd3 {[%emt 0:00:07]} Nd7 {[%emt 0:00:06]} 7. O-O {[%emt 0:00:17]} Ngf6 {[%emt 0:00:51]} 8. Ng3 {[%emt 0:00:32]} Be7 {[%emt 0:00:28]} 9. Qe2 {[%emt 0:00:13]} Bxf3 {[%emt 0:00:12] 9...Bxf3 scores better than 9...0-0.} 10. Qxf3 {[%emt 0:00:04]} c6 {[%emt 0:00:07]} 11. Rd1 {[%emt 0:00:15] C10: French with 3 Nc3: Unusual Black 3rd moves and 3...dxe4.} O-O {[%emt 0:01:44]} 12. c4 {[%emt 0:00:14]} Re8 {[%emt 0:06:32]} 13. b3 {[%emt 0:01:08] White is slightly better.} Qa5 {[%emt 0:03:46]} 14. a3 {[%emt 0:01:05] [#]} Bf8 $146 {[%emt 0:16:53]} ({Predecessor:} 14... Rad8 15. Bb2 Qg5 16. Re1 Qg4 17. Qe3 Bd6 18. b4 a6 19. Be2 Qh4 20. Qf3 Nf8 {1-0 (78) Paravyan,D (2617)-Rustemov,A (2525) Chess.com INT 2022}) 15. Rb1 {[%emt 0:06:52]} c5 {[%emt 0:23:39]} (15... Rad8 $14) 16. b4 $1 $16 {[%emt 0:19:39] White is more active.} (16. Qxb7 $6 cxd4 17. b4 Qb6 18. Qxb6 axb6 $11) 16... cxb4 {[%emt 0:00:07]} 17. axb4 {[%emt 0:05:50]} ({Much worse is} 17. Qxb7 $6 bxa3 18. Ra1 e5 $15) 17... Bxb4 {[%emt 0:01:26]} 18. Qxb7 {[%emt 0:00:32]} (18. Bf4 $16) 18... Bc3 {[%emt 0:05:38]} (18... Rab8 $11 19. Qf3 Bc3) 19. Be3 {[%emt 0:05:29] And now Ne4 would win. This bishop pair is nice.} Rab8 {[%emt 0:04:23]} 20. Qf3 {[%emt 0:00:47]} Rxb1 {[%emt 0:02:57]} 21. Rxb1 {[%emt 0:01:35]} e5 {[%emt 0:01:41]} 22. d5 {[%emt 0:01:36]} Bd2 {[%emt 0:07:26]} ({Better is} 22... Bd4 $14) 23. h3 {[%emt 0:16:58]} (23. Rb7 $16) 23... Bxe3 $14 {[%emt 0:04:39]} 24. Qxe3 {[%emt 0:00:08]} g6 {[%emt 0:03:23]} 25. Bf1 {[%emt 0:04:14]} (25. Rb7 $14) 25... Qc5 {[%emt 0:01:02]} 26. Ra1 {[%emt 0:03:28]} Ra8 {[%emt 0:01:52]} 27. Ra6 {[%emt 0:03:18] [#] aiming for Qxc5.} Qxe3 {[%emt 0:03:16]} 28. fxe3 {[%emt 0:00:07][%cal Oc4c5]} Kg7 {[%emt 0:00:06]} 29. Ra5 {[%emt 0:03:18] Prevents Nc5.} h5 {[%emt 0:03:08]} 30. h4 {[%emt 0:00:37]} Kf8 {[%emt 0:04:04]} 31. e4 {[%emt 0:01:19] Threatens to win with c5.} Rc8 {[%emt 0:00:46] Against c5} 32. Rxa7 {[%emt 0:02:26]} Nc5 {[%emt 0:00:05]} 33. Ra5 {[%emt 0:08:51]} Nfxe4 {[%emt 0:01:43]} 34. Nxe4 {[%emt 0:00:17]} Nxe4 $11 {[%emt 0:00:02][%mdl 4096] Endgame KRB-KRN} 35. Bd3 {[%emt 0:01:47]} Nc5 {[%emt 0:00:07]} (35... Nd6 $1 $15) 36. Be2 {[%emt 0:00:51]} f5 {[%emt 0:00:59]} 37. g3 {[%emt 0:00:35]} Rc7 {[%emt 0:00:55]} 38. Kg2 {[%emt 0:00:58]} Ke7 {[%emt 0:00:23]} 39. Rb5 {[%emt 0:04:32]} Nd7 {[%emt 0:00:05]} 40. Kf2 {[%emt 0:00:43]} Kd6 {[%emt 0:00:29]} 41. Ra5 {[%emt 0:34:51] Prevents Ra7.} Nc5 {[%emt 0:06:04] Against Ra6+} 42. Ra8 {[%emt 0:00:00]} Rb7 {[%emt 0:06:42] White must now prevent ...Ne4+.} 43. Rg8 {[%emt 0:00:00]} Ne4+ {[%emt 0:00:31]} 44. Kg2 {[%emt 0:00:00]} ({White should play} 44. Kg1 $1 $11) 44... Rb2 {[%emt 0:00:47]} (44... g5 $1 $15 45. Bf3 (45. Bxh5 Rb2+ 46. Kg1 g4 $17) (45. Rg6+ Kc5 $17) 45... gxh4 46. Bxe4 h3+ 47. Kxh3 fxe4) 45. Rxg6+ {[%emt 0:00:00] The position is equal.} Kc5 {[%emt 0:00:05]} 46. Kf1 {[%emt 0:00:00]} Rb1+ {[%emt 0:03:24]} 47. Kg2 {[%emt 0:00:00]} Rb2 {[%emt 0:00:05]} 48. Kf1 {[%emt 0:00:00]} Rb1+ {[%emt 0:08:10]} 49. Kg2 {[%emt 0:00:00]} Rb2 {[%emt 0:00:07] Weighted Error Value: White=0.22 (precise) /Black=0.15 (very precise)} 1/2-1/2

[Event "FIDE WSCC 50 2022"]
[Site "Assisi"]
[Date "2022.11.18"]
[Round "4.11"]
[White "Paschall, William"]
[Black "Krasenkova, Elena"]
[Result "1-0"]
[ECO "D27"]
[WhiteElo "2343"]
[BlackElo "2124"]
[Annotator "TA"]
[PlyCount "75"]
[EventDate "2022.11.14"]
[EventType "swiss"]
[EventCountry "ITA"]
[SourceTitle "playchess.com"]
[Source "ChessBase"]
[SourceQuality "1"]
[TimeControl "40/5400+30:1800+30"]

{[%evp 20,74,11,-22,-6,0,0,0,-1,-2,0,-14,67,68,79,85,130,129,138,145,139,129,124,116,147,136,163,152,272,264,269,229,471,222,408,391,578,551,716,721,957,929,916,906,898,2126,1830,1772,1270,879,29990,29991,29994,29995,29995,29996,29999]} 1. d4 {[%emt 0:00:52]} Nf6 {[%emt 0:00:05]} 2. Nf3 {[%emt 0:02:14]} e6 {[%emt 0:00:21]} 3. e3 {[%emt 0:02:14]} d5 {[%emt 0:00:13]} 4. c4 {[%emt 0:00:50]} Be7 {[%emt 0:00:16]} 5. Bd3 {[%emt 0:01:10]} O-O {[%emt 0:00:13]} 6. O-O {[%emt 0:00:42]} dxc4 {[%emt 0:00:59]} 7. Bxc4 {[%emt 0:00:13]} c5 {[%emt 0:01:08]} 8. Qe2 {[%emt 0:01:15]} Nc6 {[%emt 0:01:51]} 9. Rd1 {[%emt 0:02:27]} Qc7 {[%emt 0:00:12]} 10. Nc3 {[%emt 0:03:37]} a6 {[%emt 0:00:30]} 11. a4 {[%emt 0:02:50]} b6 {[%emt 0:01:54] D27: Queen's Gambit Accepted: Classical main line: 7 e4!? and 7 a4.} 12. d5 {[%emt 0:02:07]} exd5 {[%emt 0:00:16]} 13. Bxd5 {[%emt 0:00:08]} Bb7 {[%emt 0:00:23] The position is equal.} 14. h3 {[%emt 0:03:04]} Rad8 {[%emt 0:01:42] [#]} 15. e4 $146 {[%emt 0:04:34][%cal Be3e4,Be4e5][%mdl 32]} ({Predecessor:} 15. Bc4) 15... Nb4 {[%emt 0:03:43] [#]} (15... h6 $11) 16. Bf4 $1 $14 {[%emt 0:00:54]} Qxf4 {[%emt 0:01:13]} (16... Qc8 17. Bb3) 17. Bxb7 {[%emt 0:00:17]} a5 {[%emt 0:19:46]} 18. e5 {[%emt 0:12:41]} Ne8 {[%emt 0:00:13]} 19. Rxd8 {[%emt 0:08:21]} Bxd8 {[%emt 0:00:06]} 20. Rd1 {[%emt 0:01:15]} Nc7 {[%emt 0:03:18]} 21. g3 $36 {[%emt 0:04:47][%mdl 2048] White is really pushing.} Qh6 {[%emt 0:00:12]} 22. Kg2 {[%emt 0:00:55]} Ne6 {[%emt 0:03:44]} 23. Qc4 {[%emt 0:06:59]} Qg6 {[%emt 0:05:19]} (23... Nc2 $16 {is a better defense.} 24. Nb5 Ncd4 25. Nfxd4 (25. Nbxd4 cxd4 26. Nxd4 Be7 $18) 25... cxd4 26. Nxd4 Be7) 24. Be4 $18 {[%emt 0:09:07]} Qh5 {[%emt 0:00:34]} 25. Rd7 {[%emt 0:00:59] Threatens to win with Nb5.} Qh6 $2 {[%emt 0:02:13]} (25... Re8 26. Nb5 Re7 27. Rxe7 Bxe7) 26. h4 {[%emt 0:03:44]} (26. Nb5 $142) 26... g5 $2 {[%emt 0:12:43]} (26... Qh5 27. Nb5 Nf4+ 28. Kg1 Qg4) 27. hxg5 {[%emt 0:03:27]} Bxg5 {[%emt 0:03:11]} (27... Nxg5 {might work better.} 28. Nxg5 Qxg5) 28. Bf5 {[%emt 0:04:10] Active counter play!} Bd8 {[%emt 0:02:13]} 29. Ne4 {[%emt 0:02:36] Strongly threatening Nd6.} Ng7 {[%emt 0:15:02]} 30. Rd6 {[%emt 0:03:28][%cal Bd7d6,Bd6e6,Be6f6][%mdl 32]} Ne6 {[%emt 0:04:08]} 31. Bxe6 {[%emt 0:01:20]} fxe6 {[%emt 0:00:03]} 32. Rxe6 {[%emt 0:00:24]} Qh5 {[%emt 0:00:04]} 33. Nf6+ {[%emt 0:04:37]} Bxf6 {[%emt 0:00:35]} 34. Rxf6+ {[%emt 0:09:12]} Rf7 {[%emt 0:02:26] [#]} 35. Ng5 $1 {[%emt 0:00:00][%mdl 512] White mates.} Qxg5 {[%emt 0:01:14]} (35... Nc2 36. Rxf7) 36. Qxf7+ {[%emt 0:00:00]} Kh8 {[%emt 0:00:07]} 37. Qe8+ {[%emt 0:00:00]} Kg7 {[%emt 0:00:14]} 38. Qf8# {[%emt 0:00:00] White took control after the opening.  Weighted Error Value: White=0.19 (very precise) /Black=0.78} 1-0

[Event "FIDE WSCC 50 2022"]
[Site "Assisi"]
[Date "2022.11.18"]
[Round "4.12"]
[White "Rocha, Sergio"]
[Black "Albadri Abd Al Sattar"]
[Result "1-0"]
[ECO "A05"]
[WhiteElo "2316"]
[BlackElo "2167"]
[Annotator "TA"]
[PlyCount "85"]
[EventDate "2022.11.14"]
[EventType "swiss"]
[EventCountry "ITA"]
[SourceTitle "playchess.com"]
[Source "ChessBase"]
[SourceQuality "1"]
[TimeControl "40/5400+30:1800+30"]

{[%evp 10,85,14,-5,0,0,21,18,7,8,25,19,23,29,28,0,2,-14,24,15,25,24,20,15,40,16,37,-39,0,0,0,21,168,154,155,164,150,48,50,50,58,52,368,368,346,356,381,357,418,377,485,478,477,435,443,295,390,394,375,308,277,196,239,137,720,716,1895,1885,1776,558,1770,1736,29977,29976,29989,29990,29990,29991]} 1. Nf3 {[%emt 0:00:05]} Nf6 {[%emt 0:07:32]} 2. g3 {[%emt 0:00:25]} g6 {[%emt 0:01:06]} 3. Bg2 {[%emt 0:00:12]} Bg7 {[%emt 0:00:07]} 4. O-O {[%emt 0:00:52]} O-O {[%emt 0:00:05]} 5. d3 {[%emt 0:02:35]} d6 {[%emt 0:01:50]} 6. c3 {[%emt 0:00:45]} e5 {[%emt 0:00:17] A05: Réti Opening: 1 Nf3 Nf6.} 7. Qc2 {[%emt 0:00:12]} Nc6 {[%emt 0:00:13]} 8. b4 {[%emt 0:00:14][%cal Bb2b4,Bb4b5][%mdl 32]} a6 {[%emt 0:00:09] The position is equal.} 9. Nbd2 {[%emt 0:00:09]} h6 {[%emt 0:00:14]} 10. a4 {[%emt 0:00:10]} Be6 {[%emt 0:00:20]} 11. Bb2 {[%emt 0:02:30]} Qd7 {[%emt 0:01:41] [#]} 12. d4 $146 {[%emt 0:08:06]} ({Predecessor:} 12. Rfd1 Nh5 13. d4 exd4 14. Nxd4 Bh3 15. Bd5 Nxd4 16. cxd4 c6 17. Bf3 Rfe8 18. Nc4 {1-0 (39) Dreyer,M (2225)-Mordhorst,H (2310) Germany 1993}) 12... exd4 {[%emt 0:06:37]} 13. b5 {[%emt 0:02:56]} Na5 {[%emt 0:01:57]} 14. Nxd4 {[%emt 0:05:22]} Bh3 {[%emt 0:01:58]} 15. c4 {[%emt 0:00:24]} Bxg2 {[%emt 0:01:38]} 16. Kxg2 {[%emt 0:00:06]} b6 {[%emt 0:08:07]} 17. Bc3 {[%emt 0:02:31]} Nb7 {[%emt 0:00:42]} 18. N2b3 {[%emt 0:07:11]} (18. e4 $14) 18... Nc5 {[%emt 0:02:52]} ({Black should play} 18... d5 $15 19. cxd5 Qxd5+ 20. Nf3 axb5 21. axb5 Rxa1 22. Rxa1 Re8) 19. Nxc5 $11 {[%emt 0:06:10]} dxc5 {[%emt 0:01:00]} 20. Nc6 {[%emt 0:00:12]} a5 {[%emt 0:01:00]} (20... Rfe8 $11 {and Black is okay.}) 21. Rad1 {[%emt 0:05:20]} Qe6 {[%emt 0:01:00]} 22. Bxf6 {[%emt 0:08:11] White is much more active. The black rooks are badly placed.} Bxf6 {[%emt 0:00:36]} 23. Rd5 {[%emt 0:00:37]} (23. e4 $16) 23... Rfe8 {[%emt 0:01:49]} 24. e3 {[%emt 0:01:57][%cal Be2e3,Be3e4][%mdl 32]} h5 $1 {[%emt 0:00:19]} 25. h3 {[%emt 0:00:49]} Be7 $2 {[%emt 0:11:10][%mdl 8192] [#] White leaves nothing to chance now.} ({Better is} 25... Qe4+ $14 26. Qxe4 Rxe4) 26. e4 $18 {[%emt 0:07:27]} Bf8 {[%emt 0:03:12]} 27. e5 {[%emt 0:00:39]} Bg7 {[%emt 0:09:13]} 28. Qd3 {[%emt 0:00:40]} f6 {[%emt 0:05:42][%cal Rf6e5]} 29. Qxg6 {[%emt 0:01:39]} fxe5 {[%emt 0:02:53]} 30. Qxh5 {[%emt 0:02:41]} e4 {[%emt 0:01:56]} 31. Re1 {[%emt 0:00:59]} Rf8 {[%emt 0:00:43]} 32. Qg4 {[%emt 0:10:02]} Rae8 {[%emt 0:07:15]} 33. Qxe6+ {[%emt 0:00:56]} Rxe6 {[%emt 0:00:02]} 34. Re2 {[%emt 0:00:24]} Rf3 {[%emt 0:01:22]} 35. Re3 {[%emt 0:07:53] Against Ra3} Ref6 {[%emt 0:03:52]} 36. Rxf3 {[%emt 0:04:24]} (36. Rxe4 $2 {leads to mate.} Rxf2+ 37. Kg1 Rf1+ 38. Kh2 R6f2#) (36. Rd2 $18) 36... Rxf3 $4 {[%emt 0:02:29][%mdl 12288] Endgame [#] KRB-KRN} (36... exf3+ $16 37. Kh2 Re6) 37. Rf5 $3 {[%emt 0:01:11][%mdl 512]} Rc3 {[%emt 0:01:20]} (37... Rxf5 38. Ne7+) 38. Ne7+ {[%emt 0:00:09]} Kh7 {[%emt 0:00:20]} 39. Rh5+ {[%emt 0:00:24]} Bh6 {[%emt 0:00:18]} 40. g4 {[%emt 0:00:22][%cal Bg3g4,Bg4g5][%mdl 32]} Rxc4 {[%emt 0:03:17]} 41. g5 {[%emt 0:31:18] White mates.} Rxa4 {[%emt 0:30:49]} 42. Rxh6+ {[%emt 0:00:14]} Kg7 {[%emt 0:00:06]} 43. Nf5+ {[%emt 0:00:12] Weighted Error Value: White=0.26 (precise) /Black=0.61} 1-0

[Event "FIDE WSCC 50 2022"]
[Site "Assisi"]
[Date "2022.11.18"]
[Round "4.13"]
[White "Meessen, Rudolf"]
[Black "Young, Angelo"]
[Result "1/2-1/2"]
[ECO "B07"]
[WhiteElo "2158"]
[BlackElo "2309"]
[Annotator "TA"]
[PlyCount "98"]
[EventDate "2022.11.14"]
[EventType "swiss"]
[EventCountry "ITA"]
[SourceTitle "playchess.com"]
[Source "ChessBase"]
[SourceQuality "1"]
[TimeControl "40/5400+30:1800+30"]

{[%evp 11,98,35,40,56,93,-14,-8,-15,0,-73,-75,-76,-74,-79,-81,-149,-16,-106,0,-64,-73,-79,-69,-66,-70,-105,-100,-107,0,-72,-72,-49,-63,-58,0,0,88,0,0,0,0,0,0,0,0,0,0,-73,0,-102,-93,-93,-102,-90,-70,-121,-121,-109,-101,-113,169,169,155,160,324,293,202,76,76,34,65,51,51,8,28,0,0,8,8,8,8,0,0,0,7,0,763,708,613]} 1. d4 {[%emt 0:02:21]} Nf6 {[%emt 0:00:07]} 2. Nc3 {[%emt 0:00:07]} d6 {[%emt 0:00:24]} 3. e4 {[%emt 0:01:13][%cal Be2e4,Be4e5][%mdl 32]} c6 {[%emt 0:00:09]} 4. f4 {[%emt 0:01:08]} Qa5 {[%emt 0:00:22]} 5. e5 {[%emt 0:01:46]} Ne4 {[%emt 0:00:29]} 6. Qf3 {[%emt 0:00:49]} d5 {[%emt 0:00:52]} 7. Bd3 {[%emt 0:00:38] B07: Pirc Defence: Miscellaneous Systems.} Na6 {[%emt 0:00:53]} 8. Kf1 {[%emt 0:15:25]} (8. Nge2 $1 $16) 8... Nxc3 $11 {[%emt 0:05:42]} 9. Bd2 {[%emt 0:00:46][%mdl 64] [#] Pin. The position is equal.} e6 $146 {[%emt 0:00:40][%cal Of8b4]} ({Predecessor:} 9... Nb4 10. Bxc3 Qb6 11. Ne2 Nxd3 12. Qxd3 g6 13. Ng3 h5 14. h4 e6 15. Ne2 Bd7 {0-1 (50) Send,S (2175)-Bree,T (2252) Dortmund 2000}) 10. bxc3 {[%emt 0:00:54]} (10. Ne2 $11) 10... c5 $1 $17 {[%emt 0:02:45]} 11. Qd1 {[%emt 0:04:49]} c4 {[%emt 0:07:52]} 12. Be2 {[%emt 0:00:09]} Ba3 {[%emt 0:00:23][%cal Bf8a3,Ba3b2,Bb2c3][%mdl 32]} 13. h4 {[%emt 0:04:00]} ({White should try} 13. Rb1) 13... O-O {[%emt 0:04:04]} (13... Bb2 $17 {Strongly threatening ...Bd7.} 14. Rb1 Qxa2) 14. h5 {[%emt 0:00:39]} (14. Rb1 $11 {keeps the balance.}) 14... f6 {[%emt 0:00:46]} (14... Bb2 $17 15. Rb1 Qxa2) 15. Nf3 {[%emt 0:00:48]} (15. exf6 $11 gxf6 16. h6) 15... Bb2 $15 {[%emt 0:04:29]} 16. h6 {[%emt 0:02:37]} g6 {[%emt 0:01:41]} (16... Bxa1 17. hxg7 Rf7 18. exf6 (18. Qxa1 f5 $15) 18... Rxf6 19. Qxa1 $14) 17. Rb1 {[%emt 0:04:51]} Bxc3 {[%emt 0:00:39]} 18. Ke1 {[%emt 0:12:28]} fxe5 {[%emt 0:17:00]} 19. fxe5 {[%emt 0:01:24]} b5 {[%emt 0:02:07]} (19... Bxd2+ $17 20. Qxd2 Qxa2) 20. Rf1 {[%emt 0:04:46]} (20. Bxc3 $11 Qxc3+ 21. Qd2) 20... Bd7 $17 {[%emt 0:01:09]} 21. Bxc3 {[%emt 0:00:49]} Qxc3+ {[%emt 0:00:11]} 22. Qd2 {[%emt 0:00:17]} Qxd2+ {[%emt 0:11:53]} (22... Qa3 $15) 23. Kxd2 $11 {[%emt 0:00:49]} b4 {[%emt 0:07:55]} (23... Rf5 $11) 24. Nh2 {[%emt 0:00:06]} ({Better is} 24. a3 $16) 24... Rxf1 {[%emt 0:04:52]} 25. Bxf1 {[%emt 0:09:45]} Rb8 {[%emt 0:03:28]} 26. Ng4 {[%emt 0:00:09]} Ba4 {[%emt 0:01:40]} 27. Be2 {[%emt 0:04:39]} Nc7 {[%emt 0:00:35]} 28. Rf1 {[%emt 0:05:10]} Ne8 {[%emt 0:05:51]} 29. a3 {[%emt 0:10:20]} (29. Nf2 $11) 29... c3+ {[%emt 0:06:33]} (29... b3 $17 30. Rb1 Rb6) 30. Ke3 {[%emt 0:00:10]} (30. Kd3 $11 {remains equal.}) 30... bxa3 $17 {[%emt 0:06:19]} 31. Ra1 {[%emt 0:00:05]} Bxc2 {[%emt 0:00:24]} 32. Rxa3 {[%emt 0:00:10]} Rc8 {[%emt 0:00:26] Threatens to win with ...Bb1.} 33. Ra1 {[%emt 0:06:09] Against Bb1} (33. Rxa7 $15 Bb1 34. Nf2) 33... Bf5 {[%emt 0:03:20]} 34. Nf2 {[%emt 0:00:03]} c2 {[%emt 0:00:26]} 35. Kd2 {[%emt 0:00:45] [#]} c1=Q+ $4 {[%emt 0:00:45][%mdl 8192]} (35... g5 $1 $17 {stays on course. And now ...Nc7 would win.} 36. Rc1 Nc7) 36. Rxc1 $18 {[%emt 0:00:02]} Rxc1 {[%emt 0:00:08]} 37. Kxc1 {[%emt 0:00:02][%mdl 4096] Endgame g4 is the strong threat. KBN-KBN} Nc7 $2 {[%emt 0:01:06]} (37... g5 $16 {keeps fighting.}) 38. g4 {[%emt 0:01:38]} Be4 {[%emt 0:00:10] [#]} 39. g5 {[%emt 0:00:07]} (39. Nh3 $1 $18) 39... Bf5 $16 {[%emt 0:00:31]} 40. Kb2 {[%emt 0:00:28][%mdl 1024] White has strong compensation.} Kf7 {[%emt 0:00:31]} 41. Kc3 {[%emt 0:30:08]} Na8 {[%emt 0:09:29]} 42. Kb4 {[%emt 0:00:00]} Nb6 {[%emt 0:00:59]} 43. Bb5 {[%emt 0:00:00]} Nc8 {[%emt 0:07:54]} 44. Ba6 {[%emt 0:00:00]} Ne7 {[%emt 0:00:08]} 45. Kc5 {[%emt 0:00:00] Prevents Nc6.} Ng8 {[%emt 0:05:09]} 46. Kd6 {[%emt 0:00:00]} Ne7 {[%emt 0:02:01]} 47. Kc5 {[%emt 0:00:00]} Ng8 {[%emt 0:08:43]} 48. Kd6 {[%emt 0:11:01]} Nxh6 $2 {[%mdl 8192]} 49. gxh6 $18 {Black must now prevent Nd1.} g5 {[%mdl 32768] Weighted Error Value: White=0.36/Black=0.36. An unexpected result.} 1/2-1/2

[Event "FIDE WSCC 50 2022"]
[Site "Assisi"]
[Date "2022.11.18"]
[Round "4.14"]
[White "Plotkin, Victor"]
[Black "Koganov, Mikhail"]
[Result "1/2-1/2"]
[ECO "C50"]
[WhiteElo "2290"]
[BlackElo "2158"]
[Annotator "TA"]
[PlyCount "97"]
[EventDate "2022.11.14"]
[EventType "swiss"]
[EventCountry "ITA"]
[SourceTitle "playchess.com"]
[Source "ChessBase"]
[SourceQuality "1"]
[TimeControl "40/5400+30:1800+30"]

{[%evp 19,97,20,29,20,20,0,0,0,0,-14,-10,-20,-11,-19,0,-2,0,0,0,0,0,-21,0,0,0,0,0,0,0,0,0,0,0,0,0,0,0,-18,0,0,0,0,0,0,0,0,0,0,0,0,0,0,0,0,164,0,0,0,0,0,-5,0,6,0,6,7,7,0,0,0,0,0,0,0,0,0,0,0,0,0]} 1. e4 {[%emt 0:00:02]} e5 {[%emt 0:00:06]} 2. Nf3 {[%emt 0:00:06]} Nc6 {[%emt 0:00:04]} 3. Bc4 {[%emt 0:00:05]} Bc5 {[%emt 0:00:07]} 4. d3 {[%emt 0:00:19]} Nf6 {[%emt 0:00:36]} 5. Nc3 {[%emt 0:00:18]} d6 {[%emt 0:00:12]} 6. Na4 {[%emt 0:00:58]} Bb6 {[%emt 0:01:36]} 7. a3 {[%emt 0:06:10]} Be6 {[%emt 0:01:50]} 8. Nxb6 {[%emt 0:05:18]} axb6 {[%emt 0:00:16]} 9. Bxe6 {[%emt 0:01:07]} fxe6 {[%emt 0:00:07]} 10. O-O {[%emt 0:06:02]} O-O {[%emt 0:00:58]} 11. c3 {[%emt 0:10:57] C50: Hungarian Defence and Giuoco Pianissimo.} Qe8 {[%emt 0:03:48] [#]} 12. Nh4 $146 {[%emt 0:02:48]} ({Predecessor:} 12. Re1 h6 13. Bd2 Ng4 14. Rc1 Qf7 15. h3 Nf6 16. Be3 Qg6 17. Nh4 Qe8 18. Qb3 {0-1 (48) Fuhr,M (2136)-Marcotulli,G (1958) ICCF email 2002}) 12... Qh5 {[%emt 0:03:18]} 13. Qxh5 {[%emt 0:00:48]} Nxh5 {[%emt 0:00:09]} 14. g3 {[%emt 0:03:36]} Nf6 {[%emt 0:13:31]} 15. Be3 {[%emt 0:07:19]} Rf7 {[%emt 0:03:25]} 16. f3 {[%emt 0:03:25]} Rd8 {[%emt 0:01:11]} 17. Rad1 {[%emt 0:06:45]} d5 {[%emt 0:06:23]} 18. exd5 {[%emt 0:02:41]} exd5 {[%emt 0:00:26]} 19. Rfe1 {[%emt 0:01:57]} Re8 {[%emt 0:02:35]} 20. Ng2 {[%emt 0:05:03]} Rfe7 {[%emt 0:03:13]} 21. Bg5 {[%emt 0:01:00]} Kf7 {[%emt 0:01:15]} 22. Ne3 {[%emt 0:00:31]} Rd7 {[%emt 0:00:11]} 23. Bxf6 {[%emt 0:07:20]} gxf6 {[%emt 0:01:02]} 24. Nf5 {[%emt 0:00:30]} Ne7 {[%emt 0:00:20]} 25. Nxe7 {[%emt 0:00:40]} Rdxe7 $11 {[%emt 0:00:22][%mdl 4096] Endgame KRR-KRR} 26. Kf2 {[%emt 0:00:17]} c6 {[%emt 0:02:24]} 27. Rd2 {[%emt 0:04:41]} Ke6 {[%emt 0:00:43]} 28. Rde2 {[%emt 0:00:34]} Kd6 {[%emt 0:00:06]} (28... Kf5 {feels hotter.} 29. g4+ Kf4 30. h4 e4) 29. g4 {[%emt 0:01:07]} h5 {[%emt 0:02:12]} 30. h3 {[%emt 0:04:58]} hxg4 {[%emt 0:01:59]} 31. hxg4 {[%emt 0:00:35]} Rh8 {[%emt 0:00:31]} 32. d4 {[%emt 0:02:03]} Rh2+ {[%emt 0:01:47]} 33. Kg3 {[%emt 0:00:12]} Rxe2 {[%emt 0:02:36]} 34. Rxe2 {[%emt 0:00:01] KR-KR} c5 {[%emt 0:00:15]} 35. dxe5+ {[%emt 0:01:10]} fxe5 {[%emt 0:00:42]} 36. Rh2 {[%emt 0:01:24]} c4 $2 {[%emt 0:00:57] [#]} (36... d4 $11 {and Black stays safe.}) 37. g5 $2 {[%emt 0:00:47]} (37. f4 $1 $18) 37... d4 {[%emt 0:00:56] The position is equal.} 38. Kg4 {[%emt 0:03:05]} d3 {[%emt 0:05:48]} 39. Kf5 {[%emt 0:06:09] And now Rh6+ would win.} Rf7+ {[%emt 0:01:25]} 40. Ke4 {[%emt 0:00:04]} Rf4+ {[%emt 0:00:26]} 41. Ke3 {[%emt 0:30:03]} Rf5 {[%emt 0:30:25]} 42. Rg2 {[%emt 0:04:25]} Ke7 {[%emt 0:00:29]} 43. g6 {[%emt 0:00:00] [#] Hoping for g7.} Kf8 {[%emt 0:00:00]} 44. a4 {[%emt 0:00:00]} Kg7 {[%emt 0:00:00]} 45. b3 {[%emt 0:00:00]} cxb3 {[%emt 0:00:00]} 46. Rb2 {[%emt 0:00:00]} Rf6 {[%emt 0:00:00]} 47. Kxd3 {[%emt 0:00:00]} Rxf3+ {[%emt 0:00:00]} 48. Ke4 {[%emt 0:00:00]} Rxc3 {[%emt 0:00:00]} 49. Kxe5 {[%emt 0:00:00] Weighted Error Value: White=0.07 (flawless) /Black=0.11 (very precise)} 1/2-1/2